bitfinex-derivatives/quotes_ETHF0:USTF0_20250810
["timestamp","ask_amount","ask_price","bid_price","bid_amount"]
[1754791828539,1.92932,4292.6,4292.5,0.7028]
[1754791828735,4.99039596,4292.6,4292.5,0.7028]
[1754791828937,4.99039596,4292.6,4292.5,0.9866]
[1754791829132,5.60415767,4292.6,4292.5,0.4237]
[1754791829340,5.60415767,4292.6,4292.5,1.4124]
[1754791829534,4.22153767,4292.6,4292.5,1.4124]
[1754791829838,4.43197596,4292.6,4292.5,1.4124]
[1754791830031,3.60777596,4292.6,4292.5,1.4124]
[1754791830235,3.32927596,4292.6,4292.5,1.4124]
[1754791830634,4.52457596,4292.6,4292.5,0.9866]
[1754791831135,0.46583,4292.5,4291.8,0.8495]
[1754791831439,0.73408,4292.1,4292.0,1.4124]
[1754791831634,0.8242,4292.3,4291.3,0.4237]
[1754791831842,1.3709,4291.5,4291.4,1.55969289]
[1754791832037,0.9513,4291.5,4291.4,1.55969289]
[1754791832229,3.31038835,4291.5,4291.4,1.87835]
[1754791832435,3.04218835,4291.5,4291.4,1.4124]
[1754791832632,3.99348835,4291.5,4291.4,1.4124]
[1754791832841,1.3709,4291.5,4291.4,1.4124]
[1754791833037,3.04812558,4291.5,4291.4,1.87835]
[1754791833239,0.61376171,4291.8,4291.4,1.87835]
[1754791833441,0.61376171,4292.1,4291.8,0.8495]
[1754791833739,0.9513,4292.4,4292.3,1.4124]
[1754791834132,3.03974443,4292.4,4292.3,1.4124]
[1754791834532,0.5467,4292.4,4292.3,0.5629]
[1754791834737,0.9513,4292.4,4292.3,0.5629]
[1754791835036,4.45644472,4292.4,4292.3,0.5629]
[1754791835237,4.45644472,4292.4,4292.3,1.4332]
[1754791835437,3.99060472,4292.4,4292.3,1.4332]
[1754791835638,3.58600472,4292.4,4292.3,1.4332]
[1754791835834,3.03930472,4292.4,4292.3,1.4332]
[1754791836335,3.08892383,4292.5,4292.4,1.92264]
[1754791836539,0.61376171,4292.9,4292.8,1.4568]
[1754791836740,3.2078,4293.0,4292.9,1.4568]
[1754791838434,3.2078,4293.5,4293.4,1.92252]
[1754791839543,3.2078,4293.5,4293.4,1.4568]
[1754791840345,2.7516,4293.5,4293.4,7.4568]
[1754791840747,2.7516,4293.5,4293.4,7.0367]
[1754791841141,1.2576,4293.9,4293.8,0.7412]
[1754791841340,1.2576,4293.9,4293.8,0.2936]
[1754791841643,1.2576,4293.7,4293.6,0.7412]
[1754791841947,2.089,4293.7,4293.6,0.2936]
[1754791842150,0.46574,4293.3,4292.9,0.4476]
[1754791842336,0.8346,4292.8,4292.7,3.5014]
[1754791842539,2.089,4292.8,4292.7,0.7412]
[1754791843545,5.14775405,4292.8,4292.7,0.7412]
[1754791843842,5.76151576,4292.8,4292.7,0.7412]
[1754791844146,1.74071,4292.7,4292.2,0.4476]
[1754791844345,1.02244,4292.4,4292.3,0.2936]
[1754791844644,0.8141,4292.3,4292.1,3.2078]
[1754791844839,1.6487,4292.2,4292.1,3.5014]
[1754791845039,5.15418035,4292.2,4292.1,3.949]
[1754791845240,5.15418035,4292.2,4292.1,4.09614197]
[1754791845445,5.62004035,4292.2,4292.1,3.949]
[1754791845640,6.23469043,4292.2,4292.1,3.949]
[1754791845842,5.76883043,4292.2,4292.1,3.949]
[1754791847047,5.32853043,4292.2,4292.1,3.949]
[1754791847247,3.67983043,4292.2,4292.1,3.949]
[1754791847449,0.278,4292.6,4292.5,0.2936]
[1754791847740,4.28791385,4292.6,4292.5,0.7412]
[1754791847947,3.89681385,4292.6,4292.5,0.7412]
[1754791848146,4.31981385,4292.6,4292.5,0.7412]
[1754791848345,0.61465008,4292.7,4292.5,0.7507]
[1754791848647,0.61465008,4292.7,4292.1,3.2138]
[1754791848648,3.6308,4292.8,4292.7,0.7567]
[1754791849041,0.423,4292.8,4292.7,0.7567]
[1754791849241,0.423,4293.4,4292.8,0.4658]
[1754791849447,0.90603,4293.5,4292.6,3.2078]
[1754791849448,2.13174,4293.3,4293.2,0.7507]
[1754791849735,1.666,4293.3,4293.2,0.7412]
[1754791849941,2.70365008,4293.3,4293.2,0.7412]
[1754791850246,2.089,4293.3,4293.2,0.7412]
[1754791850643,2.089,4293.3,4292.9,0.2936]
[1754791850644,2.089,4293.0,4292.9,0.2936]
[1754791850844,0.8346,4292.7,4292.6,3.949]
[1754791851038,2.089,4292.7,4292.6,3.5014]
[1754791851437,2.55482,4292.6,4292.5,0.2936]
[1754791851642,3.16947008,4292.6,4292.5,0.7412]
[1754791851944,6.73937947,4292.6,4292.5,0.7412]
[1754791852743,5.92527947,4292.6,4292.1,0.4476]
[1754791852947,2.02154,4292.4,4292.3,0.2936]
[1754791853147,2.089,4292.4,4292.3,0.2936]
[1754791853542,2.089,4292.4,4292.3,0.7412]
[1754791854139,2.089,4292.4,4292.0,3.2078]
[1754791854448,0.423,4292.2,4292.1,0.7507]
[1754791854845,0.701,4292.2,4292.1,0.7507]
[1754791855044,1.3474,4292.2,4292.1,0.7507]
[1754791855745,0.423,4292.2,4292.1,0.7507]
[1754791855950,0.423,4292.2,4292.1,0.7567]
[1754791857151,0.99914,4292.5,4292.4,0.3031]
[1754791857346,2.13184,4292.5,4292.4,0.2936]
[1754791857550,2.13184,4292.5,4292.4,0.7412]
[1754791857848,2.55484,4292.5,4292.4,0.2936]
[1754791858050,2.55484,4292.5,4292.0,3.6554]
[1754791858051,2.13187,4292.1,4292.0,3.9585]
[1754791858252,2.55487,4292.1,4292.0,3.9585]
[1754791859044,1.42217,4292.1,4292.0,3.9585]
[1754791859455,0.9563,4292.1,4292.0,3.9585]
[1754791860048,0.423,4292.1,4292.0,3.9585]
[1754791861257,1.16694,4291.5,4291.4,3.9585]
[1754791861452,1.72354,4291.5,4291.4,3.35499813]
[1754791861658,2.55494,4291.5,4291.4,4.1056993]
[1754791861858,2.55494,4291.5,4291.4,3.9585]
[1754791862250,2.55494,4291.5,4291.4,4.10572238]
[1754791862650,2.55494,4291.5,4291.4,3.9585]
[1754791863051,5.58836907,4291.5,4291.4,3.5014]
[1754791863456,5.58836907,4291.5,4291.4,3.2078]
[1754791863655,1.30057,4291.2,4291.1,0.7412]
[1754791863854,2.55497,4291.2,4291.1,0.88830875]
[1754791864655,2.55497,4291.2,4291.1,0.89780875]
[1754791864849,1.6487,4291.2,4291.1,0.89780875]
[1754791865157,0.9563,4291.2,4291.1,0.89780875]
[1754791865358,1.8391,4291.0,4290.9,3.2078]
[1754791865561,2.1153,4291.0,4290.9,4.08805251]
[1754791866548,8.1153,4291.0,4290.9,3.2078]
[1754791866755,2.13588,4290.2,4290.1,3.509]
[1754791866958,2.58138,4290.2,4290.1,5.3319]
[1754791867454,1.37291146,4291.0,4290.9,0.8531]
[1754791867658,3.2078,4291.1,4290.9,2.1241]
[1754791867865,3.2078,4291.1,4291.0,2.1241]
[1754791868561,0.5,4291.5,4291.0,0.8531]
[1754791868862,1.3367,4291.5,4291.4,2.1241]
[1754791869061,2.1676,4291.5,4291.4,2.1241]
[1754791869560,2.6153,4291.5,4291.4,2.1241]
[1754791870760,0.5,4291.5,4291.4,2.1241]
[1754791871156,0.5,4291.5,4291.4,5.3319]
[1754791871356,0.61355578,4292.3,4292.2,2.0669]
[1754791871558,3.2078,4292.4,4292.2,2.0669]
[1754791871758,4.4299,4292.4,4292.3,2.0669]
[1754791871955,5.3231,4292.4,4292.3,2.0669]
[1754791872163,5.93714222,4292.4,4292.3,2.0669]
[1754791872361,5.93714222,4292.4,4292.3,1.4848]
[1754791872559,1.2786,4292.3,4291.5,1.23164]
[1754791872759,0.2675,4291.8,4291.7,2.53282]
[1754791872960,1.2221,4292.1,4292.0,0.8531]
[1754791873153,3.2078,4292.4,4292.2,0.46586]
[1754791873464,2.72969051,4293.2,4293.1,1.8001]
[1754791873654,0.61439051,4293.2,4293.1,2.0669]
[1754791873859,3.2078,4293.3,4292.5,3.2078]
[1754791873860,3.2078,4293.3,4293.2,2.53265]
[1754791874166,0.3854,4294.3,4293.6,1.31881]
[1754791874361,0.61458439,4294.5,4294.2,0.4481]
[1754791874565,3.08904396,4294.4,4294.3,1.2138]
[1754791874759,0.3854,4294.4,4294.3,1.2138]
[1754791874959,1.2786,4294.4,4294.3,1.2138]
[1754791875665,0.46563,4294.3,4293.6,0.46571]
[1754791875866,1.2786,4294.1,4294.0,1.2138]
[1754791876963,2.1153,4293.6,4293.5,1.0367]
[1754791877166,2.1153,4293.6,4293.5,2.0669]
[1754791877366,1.6676,4293.6,4293.5,2.0669]
[1754791877567,0.9459,4293.6,4293.5,2.0669]
[1754791878564,2.1153,4293.6,4293.5,2.0669]
[1754791879063,2.1153,4293.3,4293.2,0.5863]
[1754791879769,2.1153,4293.3,4293.2,2.0669]
[1754791879960,0.46572,4293.5,4293.2,2.0669]
[1754791879961,0.3854,4293.5,4293.3,1.2138]
[1754791880269,4.9377,4293.8,4293.7,0.5863]
[1754791880468,4.9377,4293.8,4293.7,2.0669]
[1754791880760,3.08101,4293.6,4293.5,0.8012]
[1754791880966,3.08101,4293.6,4293.5,0.5]
[1754791881167,3.08101,4293.6,4293.5,0.8012]
[1754791881362,2.6153,4293.6,4293.5,1.5367]
[1754791881563,1.3367,4293.6,4293.5,2.5669]
[1754791882172,2.6153,4293.6,4293.5,2.5669]
[1754791883167,1.7221,4293.6,4293.5,2.5669]
[1754791883369,0.5,4293.6,4293.5,2.5669]
[1754791884463,0.5,4293.6,4293.5,8.5669]
[1754791886268,0.1847,4293.6,4293.5,8.5669]
[1754791889666,0.1847,4293.6,4293.5,2.5669]
[1754791889871,2.3,4293.6,4293.5,0.5]
[1754791894067,5.3185151,4293.6,4293.5,0.5]
[1754791894470,5.3185151,4293.6,4293.5,0.0921]
[1754791898571,5.3185151,4293.6,4292.3,4.0233]
[1754791898572,0.8571,4292.4,4292.3,4.0233]
[1754791898774,1.2272,4292.4,4292.3,4.4244]
[1754791899073,1.2272,4292.4,4292.3,4.89025]
[1754791899378,0.8571,4292.4,4292.3,5.77105]
[1754791899573,0.8571,4292.4,4292.3,5.3052]
[1754791899880,2.1012,4292.4,4292.3,5.3052]
[1754791902690,2.1012,4292.4,4292.3,1.2467]
[1754791903396,0.8571,4292.1,4292.0,0.2559]
[1754791903694,2.1012,4292.1,4292.0,0.8155]
[1754791903890,2.1012,4292.1,4292.0,1.2467]
[1754791904096,2.1012,4292.1,4292.0,2.0974]
[1754791905093,2.1012,4292.1,4292.0,0.8155]
[1754791905499,2.1012,4292.1,4292.0,2.0974]
[1754791907596,0.251,4292.1,4292.0,2.0974]
[1754791907898,2.1012,4292.4,4292.3,0.8155]
[1754791908101,2.1012,4292.4,4292.3,0.2764]
[1754791909601,2.1012,4292.4,4292.3,0.5596]
[1754791909801,2.1012,4292.4,4292.3,1.4404]
[1754791910101,2.1012,4292.4,4292.3,1.8415]
[1754791910399,2.1012,4292.4,4292.3,2.0974]
[1754791910596,2.6012,4292.4,4292.3,2.5974]
[1754791915306,5.809,4292.4,4292.3,2.5974]
[1754791917000,3.7078,4292.4,4292.3,2.5974]
[1754791917206,0.5,4292.4,4292.3,11.8052]
[1754791917799,3.2078,4293.0,4292.9,1.17269]
[1754791917999,3.2078,4293.0,4292.9,2.14559]
[1754791918398,0.6871,4293.4,4293.3,0.7069]
[1754791918602,0.6871,4293.4,4293.3,1.6798]
[1754791918603,1.3597,4293.4,4293.3,1.6798]
[1754791919105,1.6633,4293.4,4293.3,1.6798]
[1754791919303,2.1012,4293.4,4293.3,1.6798]
[1754791919505,1.2272,4293.4,4293.3,1.6798]
[1754791920204,1.6633,4293.4,4293.3,1.6798]
[1754791920505,2.1012,4293.4,4293.3,1.6798]
[1754791923504,0.3701,4293.3,4292.4,0.8808]
[1754791923803,2.1012,4292.5,4292.4,1.99784]
[1754791924805,2.1012,4292.5,4292.4,1.90624]
[1754791925707,2.1012,4292.5,4292.4,2.14464]
[1754791926010,0.5535,4292.5,4292.4,2.14464]
[1754791926198,0.61488043,4293.0,4292.7,0.76531]
[1754791926403,0.5418,4292.8,4292.7,1.20571]
[1754791926605,1.2336,4292.8,4292.7,1.64741]
[1754791926807,1.2336,4292.8,4292.7,2.15961]
[1754791927006,0.61488043,4292.9,4292.8,1.4003]
[1754791927311,3.2078,4293.1,4293.0,1.6938]
[1754791927513,4.4414,4293.1,4293.0,1.6938]
[1754791927710,5.2635,4293.1,4293.0,1.6938]
[1754791928706,2.0557,4293.1,4293.0,1.6938]
[1754791929811,1.2336,4293.1,4293.0,1.6938]
[1754791930508,2.0557,4293.1,4293.0,1.6938]
[1754791931705,1.6464,4293.1,4293.0,1.6938]
[1754791931913,1.2336,4293.1,4293.0,1.6938]
[1754791933006,2.0557,4293.1,4293.0,1.6938]
[1754791936716,2.0557,4293.1,4293.0,0.593]
[1754791938616,0.8415,4292.7,4292.6,1.0134]
[1754791938912,0.8221,4292.6,4292.0,3.2078]
[1754791939116,2.0557,4292.1,4292.0,4.9016]
[1754791941017,1.2336,4292.1,4292.0,4.9016]
[1754791941222,2.0557,4292.1,4292.0,4.9016]
[1754791942120,1.2336,4292.1,4292.0,4.9016]
[1754791943118,2.0557,4292.1,4292.0,4.9016]
[1754791944319,3.95721,4292.7,4292.6,0.2995]
[1754791944517,6.34473425,4292.7,4292.6,1.0134]
[1754791944716,9.31664963,4292.7,4292.6,1.0134]
[1754791946217,9.31664963,4292.7,4292.6,0.593]
[1754791946820,9.31664963,4292.7,4292.6,1.0134]
[1754791947726,1.30733,4292.5,4292.4,1.5469]
[1754791947925,2.52153,4292.5,4292.4,1.5469]
[1754791948623,0.46585,4292.3,4292.0,4.0699]
[1754791948831,2.0557,4292.1,4292.0,4.9016]
[1754791950228,0.6503,4292.6,4292.5,1.6938]
[1754791950432,0.9339,4292.6,4292.5,0.7399]
[1754791950632,2.0557,4292.6,4292.5,0.8317]
[1754791950933,2.0557,4292.6,4292.5,1.6938]
[1754791954833,2.0557,4292.6,4292.5,1.5469]
[1754791955140,2.67114073,4292.6,4292.5,1.5469]
[1754791955636,0.8099,4292.2,4292.1,1.0082]
[1754791955841,2.0064,4292.2,4292.1,1.4274]
[1754791956039,2.0064,4292.2,4292.1,1.5196]
[1754791956539,0.8099,4292.2,4292.1,0.2912]
[1754791956738,0.8099,4292.2,4292.0,8.5478]
[1754791957241,2.0064,4292.1,4292.0,8.839]
[1754791958235,2.0064,4292.1,4292.0,8.5478]
[1754791958944,0.8099,4291.6,4291.5,3.2078]
[1754791959143,2.0064,4291.6,4291.5,3.2078]
[1754791959544,2.0064,4291.6,4291.5,3.499]
[1754791959943,2.0064,4291.6,4291.5,4.6352]
[1754791960145,2.0064,4291.6,4291.5,4.7274]
[1754791960546,2.0064,4291.6,4291.5,4.6352]
[1754791960940,2.0064,4291.6,4291.5,3.2078]
[1754791961644,2.0064,4291.6,4290.9,0.9336]
[1754791961645,0.8099,4291.0,4290.9,2.1331]
[1754791961844,2.0064,4291.0,4290.9,2.1331]
[1754791962439,0.5277,4291.9,4291.8,0.2912]
[1754791962644,2.0064,4291.9,4291.8,1.5196]
[1754791962845,4.96853478,4291.9,4291.8,1.5196]
[1754791963044,5.58372049,4291.9,4291.8,1.5196]
[1754791963249,5.58372049,4291.9,4291.8,1.4274]
[1754791963443,5.58372049,4291.9,4291.8,1.5749]
[1754791963750,0.61518571,4291.9,4291.8,1.6671]
[1754791963943,3.82298571,4292.1,4292.0,1.6671]
[1754791964246,3.2078,4292.1,4292.0,1.6671]
[1754791964944,3.4672,4292.1,4292.0,1.6671]
[1754791965246,5.2142,4292.1,4292.0,1.6671]
[1754791965441,5.82938571,4292.1,4292.0,1.6671]
[1754791965746,2.0064,4291.6,4291.5,2.13304]
[1754791966047,2.0064,4291.6,4291.5,23.69604]
[1754791966649,0.2094,4291.6,4291.5,23.69604]
[1754791966952,2.0064,4291.9,4291.8,1.2794]
[1754791967352,2.0064,4291.9,4291.8,0.8135]
[1754791967556,2.0064,4291.9,4291.8,1.4274]
[1754791968048,0.8099,4291.9,4291.4,5.80594]
[1754791968248,2.0064,4291.5,4291.4,7.60304]
[1754791968444,2.0064,4291.5,4291.4,7.1371]
[1754791968647,2.0064,4291.5,4291.4,5.926]
[1754791968852,2.0064,4291.5,4291.4,5.34]
[1754791969450,2.0064,4291.5,4290.8,0.88821]
[1754791969652,1.6068,4291.4,4291.3,0.586]
[1754791969854,2.0064,4291.4,4291.3,0.586]
[1754791970046,2.97693239,4291.5,4291.4,1.2111]
[1754791970253,2.22198571,4292.0,4291.9,0.8135]
[1754791970453,0.8099,4291.1,4288.1,7.048]
[1754791970749,0.8099,4291.1,4283.6,0.4222]
[1754791970750,3.2078,4285.4,4283.6,0.4222]
[1754791970952,1.16585,4287.9,4283.6,0.4222]
[1754791970953,3.2078,4284.8,4283.6,0.4222]
[1754791971151,0.21888991,4284.7,4283.6,0.4222]
[1754791971346,0.21888991,4284.7,4272.7,10.0135835]
[1754791971347,0.46675,4284.1,4282.6,0.4222]
[1754791971548,3.2078,4282.7,4282.6,1.214]
[1754791971744,3.2078,4282.7,4281.6,0.3726]
[1754791971943,0.6184,4281.7,4281.6,1.214]
[1754791972350,0.6184,4281.7,4281.6,23.44285215]
[1754791972657,0.6184,4281.7,4281.6,1.214]
[1754791973250,0.6184,4281.7,4280.5,33.573]
[1754791973453,3.2078,4281.0,4280.6,1.214]
[1754791973748,3.2078,4281.0,4279.2,3.2078]
[1754791973949,3.2078,4279.5,4278.2,0.15092113]
[1754791974159,3.2078,4279.0,4277.5,3.2078]
[1754791974454,3.2078,4278.3,4277.9,0.8414]
[1754791974652,3.2078,4278.3,4276.8,3.2078]
[1754791974653,3.2078,4278.3,4278.1,1.214]
[1754791974852,2.2742,4278.3,4278.2,1.214]
[1754791975150,3.2078,4280.0,4278.2,0.4192]
[1754791975355,4.45866126,4279.9,4278.7,0.46732]
[1754791975559,3.2078,4278.9,4278.1,0.7948]
[1754791975855,6.26475273,4278.8,4278.2,0.88658]
[1754791976055,3.05695273,4278.8,4278.6,1.214]
[1754791976355,3.2078,4276.7,4273.7,0.38147441]
[1754791976553,3.2078,4274.7,4274.0,0.84044]
[1754791976762,3.2078,4275.3,4274.3,0.3726]
[1754791976951,3.2078,4275.3,4274.3,0.7918]
[1754791977152,3.2078,4275.3,4274.4,0.7918]
[1754791977452,3.2078,4277.3,4275.3,0.7918]
[1754791977655,3.2078,4278.3,4277.3,0.3726]
[1754791977853,3.2078,4279.0,4277.7,3.2078]
[1754791978051,3.2078,4279.0,4277.8,0.13395859]
[1754791978252,3.04946717,4278.8,4277.8,0.13395859]
[1754791978449,3.04946717,4278.8,4277.9,0.4222]
[1754791978655,3.04946717,4278.9,4277.9,0.4222]
[1754791978850,3.2078,4279.0,4277.9,0.4222]
[1754791979050,3.2078,4278.0,4276.7,0.4222]
[1754791979357,3.2078,4278.0,4275.9,0.46763]
[1754791979358,3.2078,4277.4,4276.2,3.2078]
[1754791979559,3.2078,4277.4,4276.3,0.7918]
[1754791979758,3.2078,4276.6,4275.8,0.4222]
[1754791980062,0.0407,4275.9,4274.9,0.4222]
[1754791980257,3.2078,4275.5,4274.4,0.4222]
[1754791980457,3.2078,4276.0,4275.1,0.46771]
[1754791980757,2.99912463,4275.8,4274.9,0.8414]
[1754791980958,2.99912463,4275.8,4275.0,0.84033]
[1754791981164,3.2078,4276.6,4275.8,1.214]
[1754791981555,28.62,4278.7,4276.4,1.68157]
[1754791981556,2.99912463,4276.5,4276.4,1.68157]
[1754791981752,0.005,4277.0,4276.6,0.46755]
[1754791981955,0.005,4277.0,4276.4,3.2078]
[1754791981956,0.005,4277.0,4276.9,4.4218]
[1754791982156,3.2078,4278.1,4276.9,4.4218]
[1754791982363,3.2078,4278.1,4278.0,1.214]
[1754791982558,1.66391,4277.9,4276.1,0.7948]
[1754791982758,1.1965,4277.5,4276.2,0.46759]
[1754791982955,0.46752,4276.9,4276.0,3.2078]
[1754791983157,33.639,4278.0,4275.2,3.2078]
[1754791983158,0.7703,4276.4,4275.2,3.2078]
[1754791983362,33.639,4278.0,4274.5,0.4192]
[1754791983363,3.2078,4275.5,4274.5,0.4192]
[1754791983566,4.4043,4275.5,4274.8,0.46775]
[1754791983861,3.01344165,4275.4,4274.6,3.2078]
[1754791984163,1.1965,4275.3,4274.6,3.2078]
[1754791984359,1.1965,4274.9,4274.1,3.2078]
[1754791984561,1.1965,4274.9,4274.1,3.67563]
[1754791984857,3.01344165,4274.8,4274.3,0.4678]
[1754791985058,1.1965,4274.9,4274.3,1.214]
[1754791985260,2.97541402,4274.8,4274.1,3.2078]
[1754791985459,1.6549,4275.9,4275.6,0.46767]
[1754791985660,0.5876,4276.4,4275.7,0.46765]
[1754791985960,0.5876,4276.4,4276.0,4.74622]
[1754791986156,3.01010774,4277.3,4276.0,9.2078]
[1754791986357,0.5876,4278.1,4277.0,0.46751]
[1754791986558,0.5876,4278.1,4277.8,0.46742]
[1754791986759,3.2078,4278.2,4277.9,1.08481]
[1754791986963,3.2078,4278.2,4278.0,0.4674]
[1754791987160,3.7954,4278.8,4278.1,1.7148]
[1754791987362,3.7954,4278.8,4278.2,0.46738]
[1754791987558,3.2078,4278.8,4278.2,0.46738]
[1754791987758,3.2078,4278.8,4278.6,0.46733]
[1754791987953,1.6549,4279.4,4278.6,0.46733]
[1754791988156,1.6549,4279.4,4278.3,0.46737]
[1754791989255,3.2078,4279.5,4278.1,3.2078]
[1754791989461,3.2078,4279.5,4279.2,1.7148]
[1754791989661,3.2078,4279.5,4278.5,1.7148]
[1754791989851,3.2078,4279.5,4279.0,1.2614]
[1754791990053,3.2078,4279.5,4279.1,0.46728]
[1754791990256,3.2078,4279.5,4279.2,0.46727]
[1754791990657,3.2078,4279.5,4279.4,0.644]
[1754791990960,3.2078,4280.2,4280.0,0.46718]
[1754791991162,3.2078,4280.9,4280.3,0.46715]
[1754791991366,3.2078,4280.9,4280.1,0.644]
[1754791991566,3.2078,4280.9,4279.9,0.4672]
[1754791991864,3.2078,4280.9,4280.2,0.46716]
[1754791992058,1.032,4281.0,4279.0,33.658]
[1754791992059,3.2078,4280.4,4280.0,0.6174]
[1754791992361,3.2078,4280.4,4279.0,33.658]
[1754791992362,1.032,4280.3,4279.3,0.4289]
[1754791992560,3.2078,4279.9,4279.3,0.005]
[1754791993761,0.005,4280.1,4280.0,1.0729]
[1754791993965,0.005,4280.1,4280.0,1.6903]
[1754791994567,0.4444,4280.0,4279.9,3.2078]
[1754791994766,1.032,4280.0,4279.9,3.2078]
[1754791995166,0.005,4280.1,4280.0,1.6903]
[1754791996367,0.22408376,4280.1,4280.0,1.6903]
[1754791996863,0.52589762,4280.4,4280.0,3.2078]
[1754791997065,1.25086126,4280.7,4280.2,0.6174]
[1754791997261,1.25086126,4280.6,4280.0,3.67499]
[1754791997462,1.21103454,4280.2,4280.1,1.2614]
[1754791997970,3.2078,4280.2,4280.1,1.2614]
[1754791998168,0.46718,4280.1,4279.5,1.2614]
[1754791998467,2.07495677,4279.9,4279.4,3.2078]
[1754791998662,2.07495677,4279.9,4279.2,0.46727]
[1754791998862,1.62144079,4279.4,4279.2,0.46727]
[1754791999065,1.21608059,4279.6,4279.2,0.46727]
[1754791999259,0.5876,4279.5,4278.3,3.2078]
[1754791999466,2.07495677,4279.6,4279.5,0.46724]
[1754791999666,0.25466513,4279.7,4279.5,2.9945111]
[1754791999868,2.07495677,4279.9,4279.5,2.9945111]
[1754792000062,2.07495677,4279.9,4279.6,0.46723]
[1754792000271,1.22230157,4280.0,4279.9,0.4672]
[1754792000466,2.07495677,4280.0,4279.9,1.7062]
[1754792000672,1.6422321,4280.2,4280.1,1.58458]
[1754792000969,1.23189053,4280.9,4280.8,0.4671]
[1754792001169,1.23189053,4281.2,4280.8,3.6749]
[1754792001370,1.23189053,4281.1,4281.0,0.46708]
[1754792001570,1.23189053,4281.1,4280.9,28.52509]
[1754792001768,1.23189053,4281.0,4280.9,28.058]
[1754792002069,1.23189053,4281.2,4280.9,28.52509]
[1754792002264,0.5876,4281.1,4280.9,28.058]
[1754792002461,1.23189053,4281.2,4280.9,28.058]
[1754792002659,0.5876,4280.9,4280.6,33.648]
[1754792002868,0.5876,4280.7,4280.0,31.1878]
[1754792003068,1.23293761,4280.5,4280.2,0.46716]
[1754792003274,1.82053761,4280.5,4280.2,0.46716]
[1754792003474,1.82053761,4280.4,4280.2,0.46716]
[1754792003668,0.5876,4280.4,4280.2,0.46716]
[1754792004060,1.23293761,4280.5,4280.2,6.46716]
[1754792004272,1.23293761,4281.1,4280.6,0.46712]
[1754792004571,1.23293761,4281.1,4281.0,0.46708]
[1754792004771,1.23293761,4281.1,4281.0,28.37208]
[1754792004973,3.2078,4281.4,4281.0,28.37208]
[1754792005380,1.23293761,4281.6,4281.5,0.46703]
[1754792005672,3.2078,4282.6,4282.3,0.46694]
[1754792005866,3.2078,4283.1,4282.8,0.46688]
[1754792006067,3.2078,4283.1,4282.5,27.841]
[1754792006267,3.2078,4283.1,4282.9,0.46687]
[1754792006564,0.6229,4282.9,4282.5,27.841]
[1754792006766,0.6229,4282.9,4281.2,1.16765]
[1754792006767,3.2078,4282.6,4282.3,27.797]
[1754792006970,1.23293761,4283.7,4282.9,0.46687]
[1754792006971,0.5876,4283.0,4282.9,0.46687]
[1754792007171,3.2078,4283.3,4282.9,28.26387]
[1754792007373,0.5876,4283.2,4282.9,27.797]
[1754792007573,3.2078,4283.3,4282.9,28.26387]
[1754792007770,0.5876,4283.0,4282.7,3.2078]
[1754792008069,0.6229,4282.7,4282.5,0.46692]
[1754792008276,1.6549,4282.6,4282.5,28.23192]
[1754792008576,1.2105,4282.6,4282.5,28.23192]
[1754792008974,0.5876,4282.6,4282.5,28.23192]
[1754792009173,3.2078,4282.8,4282.5,28.23192]
[1754792009371,0.5876,4283.0,4282.8,0.46687]
[1754792009872,4.4183,4283.5,4283.4,0.46682]
[1754792010078,3.7954,4283.5,4283.3,28.16383]
[1754792010374,0.5876,4283.4,4283.3,27.697]
[1754792010766,0.60843325,4283.9,4283.3,27.697]
[1754792010967,0.5876,4284.0,4283.6,3.2078]
[1754792011281,3.2078,4284.0,4283.0,3.2078]
[1754792011469,0.5876,4284.0,4283.9,0.46676]
[1754792011772,0.5876,4284.0,4283.9,28.09176]
[1754792011965,1.2105,4284.0,4283.9,27.625]
[1754792012572,0.5876,4284.0,4283.9,27.625]
[1754792012769,1.2105,4284.0,4283.9,27.625]
[1754792012975,1.6549,4284.0,4283.9,27.625]
[1754792014077,0.46674,4284.1,4283.4,27.559]
[1754792014266,3.2078,4283.7,4283.4,27.559]
[1754792014875,3.2078,4283.7,4282.8,33.635]
[1754792014876,1.0673,4283.5,4282.9,0.46687]
[1754792015077,1.7399,4283.2,4283.1,0.46685]
[1754792015271,1.7399,4283.1,4282.8,33.635]
[1754792015474,1.7399,4283.0,4282.8,34.10188]
[1754792015676,0.60801505,4283.1,4282.9,27.456]
[1754792015879,3.2078,4283.2,4283.0,0.46686]
[1754792016180,0.4779,4283.6,4283.3,0.46683]
[1754792016376,1.0792,4283.6,4283.3,0.46683]
[1754792016680,1.0792,4283.5,4282.7,27.408]
[1754792016871,1.7399,4283.0,4282.7,27.87489]
[1754792017072,0.60801505,4283.1,4282.7,27.408]
[1754792017378,1.0792,4282.8,4282.7,27.408]
[1754792017571,1.7399,4282.8,4282.7,27.408]
[1754792017771,1.262,4282.8,4282.7,27.408]
[1754792018572,0.6607,4282.8,4282.7,27.8946]
[1754792018773,0.6607,4282.8,4282.7,27.9098]
[1754792018973,3.8685,4283.2,4283.1,0.95345]
[1754792019278,0.6607,4283.2,4283.1,0.96865]
[1754792019977,0.60801505,4283.8,4283.7,0.96859]
[1754792020174,0.6607,4284.3,4284.2,0.46673]
[1754792020573,0.6607,4284.3,4284.2,0.95333]
[1754792020778,0.6607,4284.3,4284.2,0.96853]
[1754792021579,3.2078,4284.6,4284.5,0.4667]
[1754792021774,3.2078,4284.6,4284.5,28.1683]